[Event "Live Chess"]
[Site "Chess.com"]
[Date "2023.05.21"]
[Round "-"]
[White "RichardABates"]
[Black "jimwad"]
[Result "1-0"]
[WhiteElo "2186"]
[BlackElo "1217"]
[TimeControl "300"]
[EndTime "8:29:27 PDT"]
[Termination "RichardABates won by resignation"]

1. d4 {[%clk 0:04:58.9]} 1... d5 {[%clk 0:04:58.7]} 2. c4 {[%clk 0:04:57.7]}
2... c6 {[%clk 0:04:57.6]} 3. Nc3 {[%clk 0:04:56.4]} 3... Nf6 {[%clk 0:04:56.4]}
4. cxd5 {[%clk 0:04:55.1]} 4... Nxd5 {[%clk 0:04:55.1]} 5. e4 {[%clk 0:04:53.4]}
5... Nxc3 {[%clk 0:04:53.8]} 6. bxc3 {[%clk 0:04:52.5]} 6... e6 {[%clk 0:04:47]}
7. Nf3 {[%clk 0:04:50.7]} 7... Qf6 {[%clk 0:04:44.3]} 8. Bd3 {[%clk 0:04:48.9]}
8... Be7 {[%clk 0:04:37.1]} 9. e5 {[%clk 0:04:47.3]} 9... Qxf3 {[%clk
0:03:59.9]} 10. Qxf3 {[%clk 0:04:45.6]} 10... O-O {[%clk 0:03:53.7]} 11. h4
{[%clk 0:04:41.5]} 11... Nd7 {[%clk 0:03:51.4]} 12. h5 {[%clk 0:04:38.4]} 12...
h6 {[%clk 0:03:49.9]} 13. Qe4 {[%clk 0:04:36.4]} 13... f5 {[%clk 0:03:46.7]} 14.
exf6 {[%clk 0:04:35.2]} 14... Nxf6 {[%clk 0:03:45.6]} 15. Qg6 {[%clk 0:04:34.2]}
15... Bd7 {[%clk 0:03:33.5]} 16. Bxh6 {[%clk 0:04:32.4]} 16... Rf7 {[%clk
0:03:26.2]} 17. Bg5 {[%clk 0:04:26.5]} 17... Be8 {[%clk 0:03:17.7]} 18. Bxf6
{[%clk 0:04:22.9]} 18... Rxf6 {[%clk 0:03:16.7]} 19. Qh7+ {[%clk 0:04:21]} 19...
Kf7 {[%clk 0:03:15.3]} 20. Bg6+ {[%clk 0:04:19.6]} 20... Rxg6 {[%clk 0:03:04.2]}
21. hxg6+ {[%clk 0:04:18.3]} 1-0

[Event "Live Chess"]
[Site "Chess.com"]
[Date "2023.05.21"]
[Round "-"]
[White "Long1968"]
[Black "MarkLim1"]
[Result "0-1"]
[WhiteElo "967"]
[BlackElo "1709"]
[TimeControl "300"]
[EndTime "8:29:31 PDT"]
[Termination "MarkLim1 won on time"]

1. e4 {[%clk 0:04:54]} 1... d5 {[%clk 0:04:59.1]} 2. exd5 {[%clk 0:04:51.7]}
2... Qxd5 {[%clk 0:04:58.3]} 3. Nc3 {[%clk 0:04:49.3]} 3... Qd6 {[%clk
0:04:57.6]} 4. d4 {[%clk 0:04:46.5]} 4... Nf6 {[%clk 0:04:56.5]} 5. Nf3 {[%clk
0:04:43.7]} 5... c6 {[%clk 0:04:55.9]} 6. Be2 {[%clk 0:04:41.3]} 6... g6 {[%clk
0:04:55.1]} 7. Bg5 {[%clk 0:04:36.4]} 7... Bg7 {[%clk 0:04:54.1]} 8. Ne5 {[%clk
0:04:28]} 8... O-O {[%clk 0:04:51.8]} 9. h4 {[%clk 0:04:18]} 9... Nbd7 {[%clk
0:04:50.6]} 10. Qd2 {[%clk 0:04:00.6]} 10... Nxe5 {[%clk 0:04:49.2]} 11. dxe5
{[%clk 0:03:55.7]} 11... Qxe5 {[%clk 0:04:48.2]} 12. Bf4 {[%clk 0:03:47.7]}
12... Qa5 {[%clk 0:04:41]} 13. O-O {[%clk 0:03:31.4]} 13... Bf5 {[%clk
0:04:39.8]} 14. Bf3 {[%clk 0:02:44.6]} 14... Rad8 {[%clk 0:04:34.5]} 15. Qe2
{[%clk 0:02:09.5]} 15... Rd7 {[%clk 0:04:22.6]} 16. g4 {[%clk 0:01:58.3]} 16...
Be6 {[%clk 0:04:19.9]} 17. g5 {[%clk 0:01:47]} 17... Nd5 {[%clk 0:04:18.5]} 18.
Nxd5 {[%clk 0:01:08.7]} 18... Bxd5 {[%clk 0:04:13.1]} 19. Bxd5 {[%clk
0:01:02.5]} 19... Rxd5 {[%clk 0:04:09.4]} 20. Qxe7 {[%clk 0:00:46.7]} 20... Bxb2
{[%clk 0:04:07.6]} 21. Rab1 {[%clk 0:00:37.9]} 21... Qxa2 {[%clk 0:04:03.9]} 22.
Bd6 {[%clk 0:00:15.2]} 22... Rxd6 {[%clk 0:03:40.5]} 23. Qxd6 {[%clk 0:00:08.8]}
23... Bg7 {[%clk 0:03:38.3]} 0-1

[Event "Live Chess"]
[Site "Chess.com"]
[Date "2023.05.21"]
[Round "-"]
[White "robotking06"]
[Black "ramses-IIG"]
[Result "1-0"]
[WhiteElo "352"]
[BlackElo "858"]
[TimeControl "300"]
[EndTime "8:29:31 PDT"]
[Termination "robotking06 won by resignation"]

1. e4 {[%clk 0:04:58.9]} 1... d5 {[%clk 0:04:59.5]} 2. exd5 {[%clk 0:04:56.5]}
2... Qxd5 {[%clk 0:04:59.4]} 3. Nc3 {[%clk 0:04:55.5]} 3... Qe6+ {[%clk
0:04:59.3]} 4. Nge2 {[%clk 0:04:52.6]} 4... Qg6 {[%clk 0:04:59.2]} 5. Nf4 {[%clk
0:04:49.6]} 5... Qf6 {[%clk 0:04:56.3]} 6. Nfd5 {[%clk 0:04:45.8]} 6... Qc6
{[%clk 0:04:54.3]} 7. Bb5 {[%clk 0:04:35.9]} 7... Bg4 {[%clk 0:04:43.9]} 8. f3
{[%clk 0:04:33]} 8... Qxb5 {[%clk 0:04:42.2]} 9. Nxb5 {[%clk 0:04:30.4]} 9...
Bxf3 {[%clk 0:04:42.1]} 10. Qxf3 {[%clk 0:04:27.6]} 10... e6 {[%clk 0:04:40.9]}
11. Ndxc7+ {[%clk 0:04:24.7]} 1-0

[Event "Live Chess"]
[Site "Chess.com"]
[Date "2023.05.21"]
[Round "-"]
[White "zdanevych"]
[Black "Tiltador"]
[Result "1-0"]
[WhiteElo "1462"]
[BlackElo "905"]
[TimeControl "300"]
[EndTime "8:29:39 PDT"]
[Termination "zdanevych won by resignation"]

1. d3 {[%clk 0:04:59]} 1... e5 {[%clk 0:04:58.1]} 2. e4 {[%clk 0:04:58.3]} 2...
f6 {[%clk 0:04:57.1]} 3. Nf3 {[%clk 0:04:57.5]} 3... d6 {[%clk 0:04:56.2]} 4. d4
{[%clk 0:04:56]} 4... Bg4 {[%clk 0:04:55]} 5. h3 {[%clk 0:04:54.5]} 5... Bxf3
{[%clk 0:04:54.1]} 6. Qxf3 {[%clk 0:04:53.7]} 6... Nc6 {[%clk 0:04:52]} 7. d5
{[%clk 0:04:52.5]} 7... Nd4 {[%clk 0:04:50.6]} 8. Qd1 {[%clk 0:04:49.4]} 8... g6
{[%clk 0:04:45.8]} 9. c3 {[%clk 0:04:48.7]} 9... Nc6 {[%clk 0:04:25.2]} 10. dxc6
{[%clk 0:04:47.2]} 10... bxc6 {[%clk 0:04:23.1]} 11. Be2 {[%clk 0:04:44]} 11...
Bg7 {[%clk 0:04:21.8]} 12. O-O {[%clk 0:04:40.8]} 12... Ne7 {[%clk 0:04:20.4]}
13. Be3 {[%clk 0:04:38.6]} 13... O-O {[%clk 0:04:18.8]} 14. Nd2 {[%clk
0:04:37.6]} 14... d5 {[%clk 0:04:16.8]} 15. exd5 {[%clk 0:04:36.6]} 15... Nxd5
{[%clk 0:04:14.8]} 16. Bc4 {[%clk 0:04:34.2]} 16... Kh8 {[%clk 0:04:11.7]} 17.
Bxd5 {[%clk 0:04:31.4]} 17... Qxd5 {[%clk 0:04:08.4]} 18. Nb3 {[%clk 0:04:26.7]}
18... f5 {[%clk 0:04:05.8]} 19. Qxd5 {[%clk 0:04:22]} 19... cxd5 {[%clk
0:04:03.6]} 20. Rad1 {[%clk 0:04:16.5]} 20... Rfd8 {[%clk 0:03:56.7]} 21. Nc5
{[%clk 0:04:12]} 21... c6 {[%clk 0:03:51.5]} 22. Ne6 {[%clk 0:04:10.2]} 22...
Rd7 {[%clk 0:03:47.5]} 23. Nxg7 {[%clk 0:04:05.8]} 23... Kxg7 {[%clk 0:03:43.2]}
24. Bc5 {[%clk 0:04:02.2]} 24... e4 {[%clk 0:03:34.2]} 25. Rfe1 {[%clk 0:03:57]}
25... Re8 {[%clk 0:03:28.1]} 26. Bd4+ {[%clk 0:03:55.6]} 26... Kg8 {[%clk
0:03:25.5]} 27. Re3 {[%clk 0:03:53.4]} 27... a5 {[%clk 0:03:22.3]} 28. f3 {[%clk
0:03:47.8]} 28... a4 {[%clk 0:03:15.6]} 29. fxe4 {[%clk 0:03:45.9]} 29... fxe4
{[%clk 0:03:14.2]} 30. Rf1 {[%clk 0:03:43]} 30... Rf8 {[%clk 0:03:09.4]} 31.
Rxf8+ {[%clk 0:03:40.8]} 31... Kxf8 {[%clk 0:03:08.3]} 32. Re2 {[%clk
0:03:38.8]} 32... Kg8 {[%clk 0:03:04.2]} 33. Rf2 {[%clk 0:03:38.1]} 33... Rf7
{[%clk 0:03:02]} 34. Rxf7 {[%clk 0:03:36.7]} 34... Kxf7 {[%clk 0:03:01.2]} 35.
Kf2 {[%clk 0:03:36.1]} 35... Ke6 {[%clk 0:03:00.1]} 36. Ke3 {[%clk 0:03:35.4]}
36... Kf5 {[%clk 0:02:59.2]} 37. g3 {[%clk 0:03:34.5]} 37... h5 {[%clk
0:02:57.8]} 38. b3 {[%clk 0:03:32]} 38... axb3 {[%clk 0:02:51.8]} 39. axb3
{[%clk 0:03:31.9]} 39... g5 {[%clk 0:02:48.7]} 40. c4 {[%clk 0:03:30.8]} 40...
dxc4 {[%clk 0:02:44.5]} 41. bxc4 {[%clk 0:03:30.7]} 41... g4 {[%clk 0:02:42.4]}
42. hxg4+ {[%clk 0:03:29.3]} 42... hxg4 {[%clk 0:02:40.6]} 43. c5 {[%clk
0:03:21.1]} 43... Ke6 {[%clk 0:02:15.3]} 44. Kxe4 {[%clk 0:03:18.9]} 44... Kf7
{[%clk 0:02:09.5]} 45. Kf5 {[%clk 0:03:15]} 45... Kg8 {[%clk 0:02:01.3]} 46.
Kxg4 {[%clk 0:03:13.6]} 46... Kf7 {[%clk 0:01:59.7]} 47. Kf5 {[%clk 0:03:13]}
47... Ke7 {[%clk 0:01:58.1]} 48. Ke5 {[%clk 0:03:07.8]} 48... Kf7 {[%clk
0:01:56.3]} 49. Kd6 {[%clk 0:03:07]} 49... Kg6 {[%clk 0:01:54.7]} 50. Kxc6
{[%clk 0:03:06.1]} 50... Kg5 {[%clk 0:01:53.8]} 51. Kd6 {[%clk 0:03:04.9]} 51...
Kg4 {[%clk 0:01:52.8]} 52. Be5 {[%clk 0:03:04.6]} 52... Kf5 {[%clk 0:01:51.3]}
53. c6 {[%clk 0:03:04.1]} 53... Ke4 {[%clk 0:01:49.4]} 54. c7 {[%clk 0:03:04]}
54... Kd3 {[%clk 0:01:47.9]} 55. c8=Q {[%clk 0:03:03.9]} 1-0

[Event "Live Chess"]
[Site "Chess.com"]
[Date "2023.05.21"]
[Round "-"]
[White "manthanit"]
[Black "SavagePawn7"]
[Result "1-0"]
[WhiteElo "1105"]
[BlackElo "775"]
[TimeControl "300"]
[EndTime "8:29:46 PDT"]
[Termination "manthanit won by resignation"]

1. e4 {[%clk 0:04:58.1]} 1... d5 {[%clk 0:04:56.2]} 2. exd5 {[%clk 0:04:57.1]}
2... Nf6 {[%clk 0:04:54.4]} 3. Nc3 {[%clk 0:04:55.8]} 3... Nxd5 {[%clk
0:04:52.6]} 4. Nxd5 {[%clk 0:04:54.6]} 4... Qxd5 {[%clk 0:04:51.1]} 5. Nf3
{[%clk 0:04:54.1]} 5... Nc6 {[%clk 0:04:48.1]} 6. Be2 {[%clk 0:04:53.2]} 6...
Bg4 {[%clk 0:04:42.6]} 7. d3 {[%clk 0:04:48.9]} 7... O-O-O {[%clk 0:04:33]} 8.
O-O {[%clk 0:04:44.1]} 8... e6 {[%clk 0:04:20.9]} 9. h3 {[%clk 0:04:25.8]} 9...
Bxf3 {[%clk 0:04:19.4]} 10. Bxf3 {[%clk 0:04:24.8]} 10... Qe5 {[%clk 0:04:17.4]}
11. Re1 {[%clk 0:04:21.7]} 11... Qd6 {[%clk 0:04:06.2]} 12. Be3 {[%clk
0:04:10.7]} 12... Nd4 {[%clk 0:04:01.9]} 13. c3 {[%clk 0:04:04.6]} 13... Nxf3+
{[%clk 0:04:00.4]} 14. Qxf3 {[%clk 0:04:01.8]} 14... Qd7 {[%clk 0:03:45.3]} 15.
Bxa7 {[%clk 0:03:59.7]} 15... Bd6 {[%clk 0:03:39]} 16. d4 {[%clk 0:03:49.3]}
16... Rhe8 {[%clk 0:03:22.8]} 17. Rad1 {[%clk 0:03:45.8]} 17... Qe7 {[%clk
0:03:13.3]} 18. b4 {[%clk 0:03:30.1]} 18... e5 {[%clk 0:03:11.2]} 19. dxe5
{[%clk 0:03:23.2]} 19... Bxe5 {[%clk 0:03:07.8]} 20. Rxd8+ {[%clk 0:03:19.7]}
20... Rxd8 {[%clk 0:03:03]} 21. Qf5+ {[%clk 0:03:10.1]} 21... Rd7 {[%clk
0:02:55]} 22. Qxe5 {[%clk 0:03:06.7]} 22... Qxe5 {[%clk 0:02:49.3]} 23. Rxe5
{[%clk 0:03:05.1]} 1-0

[Event "Live Chess"]
[Site "Chess.com"]
[Date "2023.05.21"]
[Round "-"]
[White "slava_ukr"]
[Black "HonestJoe1"]
[Result "1-0"]
[WhiteElo "2346"]
[BlackElo "2091"]
[TimeControl "300"]
[EndTime "8:29:50 PDT"]
[Termination "slava_ukr won by resignation"]

1. e4 {[%clk 0:04:58.7]} 1... c5 {[%clk 0:04:58.8]} 2. Nc3 {[%clk 0:04:57.7]}
2... a6 {[%clk 0:04:56.6]} 3. f4 {[%clk 0:04:56.9]} 3... b5 {[%clk 0:04:55.1]}
4. Nf3 {[%clk 0:04:56.2]} 4... Bb7 {[%clk 0:04:54.1]} 5. d3 {[%clk 0:04:55.6]}
5... e6 {[%clk 0:04:52.9]} 6. g3 {[%clk 0:04:54.6]} 6... d5 {[%clk 0:04:49.9]}
7. e5 {[%clk 0:04:53.5]} 7... b4 {[%clk 0:04:47.4]} 8. Ne2 {[%clk 0:04:52]} 8...
Ne7 {[%clk 0:04:41.6]} 9. Bg2 {[%clk 0:04:50.4]} 9... Nf5 {[%clk 0:04:40.2]} 10.
g4 {[%clk 0:04:45.3]} 10... Nh4 {[%clk 0:04:37.4]} 11. Nxh4 {[%clk 0:04:44.4]}
11... Qxh4+ {[%clk 0:04:35.9]} 12. Ng3 {[%clk 0:04:43.6]} 12... Nc6 {[%clk
0:04:23.8]} 13. O-O {[%clk 0:04:39.9]} 13... c4 {[%clk 0:03:45.9]} 14. d4 {[%clk
0:04:38.4]} 14... Qd8 {[%clk 0:03:19.1]} 15. Be3 {[%clk 0:04:34.1]} 15... Be7
{[%clk 0:03:16.1]} 16. Qf3 {[%clk 0:04:23.6]} 16... g6 {[%clk 0:03:13.5]} 17. f5
{[%clk 0:04:19.9]} 17... Rf8 {[%clk 0:02:47.4]} 18. f6 {[%clk 0:04:17.7]} 1-0

[Event "Live Chess"]
[Site "Chess.com"]
[Date "2023.05.21"]
[Round "-"]
[White "Doge_Dandolo"]
[Black "Rusty_Bridges"]
[Result "1-0"]
[WhiteElo "1850"]
[BlackElo "1520"]
[TimeControl "300"]
[EndTime "8:29:54 PDT"]
[Termination "Doge_Dandolo won by resignation"]

1. Nf3 {[%clk 0:04:58.7]} 1... d5 {[%clk 0:04:56.3]} 2. c4 {[%clk 0:04:56.6]}
2... d4 {[%clk 0:04:52.7]} 3. b4 {[%clk 0:04:54.1]} 3... Nf6 {[%clk 0:04:48.7]}
4. d3 {[%clk 0:04:52.3]} 4... Bg4 {[%clk 0:04:43]} 5. Nbd2 {[%clk 0:04:49.8]}
5... e6 {[%clk 0:04:39.5]} 6. Qb3 {[%clk 0:04:47.2]} 6... Be7 {[%clk 0:04:32.4]}
7. g3 {[%clk 0:04:45.7]} 7... O-O {[%clk 0:04:27]} 8. Bg2 {[%clk 0:04:43.6]}
8... c6 {[%clk 0:04:24.7]} 9. O-O {[%clk 0:04:38.3]} 9... a5 {[%clk 0:04:20.3]}
10. b5 {[%clk 0:04:32.9]} 10... Bb4 {[%clk 0:04:08.7]} 11. a3 {[%clk 0:04:29.6]}
11... Bxd2 {[%clk 0:04:07.1]} 12. Bxd2 {[%clk 0:04:28.3]} 12... Qc7 {[%clk
0:03:57]} 13. Bf4 {[%clk 0:04:24.5]} 13... Qd7 {[%clk 0:03:45.7]} 14. Ne5 {[%clk
0:04:19.5]} 14... Qe8 {[%clk 0:03:30.4]} 15. Rfe1 {[%clk 0:04:13.6]} 15... h5
{[%clk 0:03:24.9]} 16. Rab1 {[%clk 0:04:05.1]} 16... c5 {[%clk 0:03:18.3]} 17.
Bxb7 {[%clk 0:03:59.4]} 17... Ra7 {[%clk 0:03:17.2]} 18. Bg2 {[%clk 0:03:55]}
18... a4 {[%clk 0:03:11.4]} 19. Qc2 {[%clk 0:03:53.1]} 19... Nbd7 {[%clk
0:03:04.2]} 20. Nxd7 {[%clk 0:03:50.9]} 20... Nxd7 {[%clk 0:03:00]} 21. Rb2
{[%clk 0:03:47.6]} 21... e5 {[%clk 0:02:57.6]} 22. Bc1 {[%clk 0:03:36.7]} 22...
Nb6 {[%clk 0:02:35.9]} 23. h3 {[%clk 0:03:34.1]} 23... Be6 {[%clk 0:02:30.4]}
24. e3 {[%clk 0:03:24]} 24... f5 {[%clk 0:02:26.2]} 25. exd4 {[%clk 0:03:22.3]}
25... exd4 {[%clk 0:02:17.4]} 26. h4 {[%clk 0:03:18.6]} 26... Qf7 {[%clk
0:02:03.8]} 27. Bg5 {[%clk 0:03:14.6]} 27... g6 {[%clk 0:01:55.2]} 28. Qc1
{[%clk 0:03:12.1]} 28... Re8 {[%clk 0:01:50.6]} 29. Rbe2 {[%clk 0:03:11]} 29...
Nd7 {[%clk 0:01:42.4]} 30. Rxe6 {[%clk 0:03:04.9]} 30... Rxe6 {[%clk 0:01:39.9]}
31. Rxe6 {[%clk 0:03:04.2]} 31... Qxe6 {[%clk 0:01:37.8]} 32. Bd5 {[%clk
0:03:03.7]} 1-0

[Event "Live Chess"]
[Site "Chess.com"]
[Date "2023.05.21"]
[Round "-"]
[White "raminguy"]
[Black "stevochess11"]
[Result "1-0"]
[WhiteElo "1937"]
[BlackElo "1663"]
[TimeControl "300"]
[EndTime "8:30:14 PDT"]
[Termination "raminguy won by checkmate"]

1. d4 {[%clk 0:04:56.1]} 1... Nf6 {[%clk 0:04:58]} 2. Nc3 {[%clk 0:04:54.7]}
2... d5 {[%clk 0:04:53.7]} 3. Bf4 {[%clk 0:04:53.7]} 3... g6 {[%clk 0:04:52.9]}
4. e3 {[%clk 0:04:51.4]} 4... Bg7 {[%clk 0:04:52.1]} 5. h4 {[%clk 0:04:50.3]}
5... c5 {[%clk 0:04:48.9]} 6. dxc5 {[%clk 0:04:48]} 6... Qa5 {[%clk 0:04:45.7]}
7. Bb5+ {[%clk 0:04:31.8]} 7... Bd7 {[%clk 0:04:42.7]} 8. Bxd7+ {[%clk 0:04:20]}
8... Nbxd7 {[%clk 0:04:41.4]} 9. c6 {[%clk 0:04:14.2]} 9... bxc6 {[%clk
0:04:35.1]} 10. Ne2 {[%clk 0:04:12.4]} 10... Ne4 {[%clk 0:04:29.8]} 11. O-O
{[%clk 0:04:10.9]} 11... Nxc3 {[%clk 0:04:25.9]} 12. Nxc3 {[%clk 0:04:08.5]}
12... Bxc3 {[%clk 0:04:24.8]} 13. bxc3 {[%clk 0:04:06.8]} 13... Qxc3 {[%clk
0:04:23.6]} 14. Re1 {[%clk 0:03:54.7]} 14... e5 {[%clk 0:03:58.4]} 15. Bh6
{[%clk 0:03:46.9]} 15... e4 {[%clk 0:03:43.6]} 16. Qg4 {[%clk 0:03:42.9]} 16...
f5 {[%clk 0:03:36.5]} 17. Qg5 {[%clk 0:03:41.1]} 17... Kf7 {[%clk 0:03:15.6]}
18. Rab1 {[%clk 0:03:23]} 18... Rab8 {[%clk 0:03:09.3]} 19. Qf4 {[%clk
0:03:20.5]} 19... Rxb1 {[%clk 0:03:06.6]} 20. Rxb1 {[%clk 0:03:18.5]} 20... Ke6
{[%clk 0:02:54.6]} 21. g3 {[%clk 0:02:55.3]} 21... Qe5 {[%clk 0:02:40.7]} 22.
Qg5 {[%clk 0:02:53.1]} 22... Re8 {[%clk 0:02:28.3]} 23. Rb7 {[%clk 0:02:50.9]}
23... Qa1+ {[%clk 0:02:20]} 24. Kg2 {[%clk 0:02:49.2]} 24... Qxa2 {[%clk
0:02:14.8]} 25. h5 {[%clk 0:02:47.6]} 25... Qxc2 {[%clk 0:02:09.9]} 26. hxg6
{[%clk 0:02:46.1]} 26... hxg6 {[%clk 0:02:08.8]} 27. Qxg6+ {[%clk 0:02:45.2]}
27... Nf6 {[%clk 0:02:06]} 28. Qf7+ {[%clk 0:02:38.2]} 28... Ke5 {[%clk
0:02:00.7]} 29. Bf4# {[%clk 0:02:35.7]} 1-0

[Event "Live Chess"]
[Site "Chess.com"]
[Date "2023.05.21"]
[Round "-"]
[White "PaulyD81"]
[Black "DfNn"]
[Result "0-1"]
[WhiteElo "1141"]
[BlackElo "1546"]
[TimeControl "300"]
[EndTime "8:30:16 PDT"]
[Termination "DfNn won by resignation"]

1. d4 {[%clk 0:04:56.1]} 1... f5 {[%clk 0:04:58]} 2. c4 {[%clk 0:04:53.2]} 2...
Nf6 {[%clk 0:04:56.5]} 3. Nc3 {[%clk 0:04:51.9]} 3... b6 {[%clk 0:04:53.7]} 4.
e3 {[%clk 0:04:50.1]} 4... Bb7 {[%clk 0:04:52.8]} 5. Nf3 {[%clk 0:04:45.2]} 5...
e6 {[%clk 0:04:51.8]} 6. Be2 {[%clk 0:04:39.4]} 6... Be7 {[%clk 0:04:50.7]} 7.
O-O {[%clk 0:04:38.2]} 7... O-O {[%clk 0:04:49.6]} 8. Qc2 {[%clk 0:04:29.4]}
8... Qe8 {[%clk 0:04:48.2]} 9. h3 {[%clk 0:04:28.2]} 9... Qg6 {[%clk 0:04:46.8]}
10. Ne5 {[%clk 0:04:23.8]} 10... Qe8 {[%clk 0:04:44.1]} 11. Nf3 {[%clk
0:03:54.1]} 11... d6 {[%clk 0:04:39.8]} 12. Re1 {[%clk 0:03:39.5]} 12... Qg6
{[%clk 0:04:36.4]} 13. b3 {[%clk 0:03:19.1]} 13... Ne4 {[%clk 0:04:31.9]} 14.
Bb2 {[%clk 0:03:12]} 14... Nd7 {[%clk 0:04:26.1]} 15. Rad1 {[%clk 0:02:36.4]}
15... Ndf6 {[%clk 0:04:22.4]} 16. d5 {[%clk 0:02:32.2]} 16... e5 {[%clk
0:04:14.6]} 17. Bd3 {[%clk 0:02:19.5]} 17... Bc8 {[%clk 0:04:11.1]} 18. Nxe4
{[%clk 0:02:12.7]} 18... fxe4 {[%clk 0:04:08]} 19. Nh4 {[%clk 0:01:59.2]} 19...
Qh5 {[%clk 0:03:58.8]} 20. Be2 {[%clk 0:00:58.1]} 20... Qxh4 {[%clk 0:03:54.6]}
21. g3 {[%clk 0:00:57.6]} 21... Qxh3 {[%clk 0:03:51.7]} 22. c5 {[%clk
0:00:37.8]} 22... Ng4 {[%clk 0:03:49.1]} 23. Bxg4 {[%clk 0:00:31.6]} 23... Bxg4
{[%clk 0:03:46.7]} 24. Rd2 {[%clk 0:00:22.9]} 24... Bf3 {[%clk 0:03:43.9]} 0-1

[Event "Live Chess"]
[Site "Chess.com"]
[Date "2023.05.21"]
[Round "-"]
[White "youtookmyhorse"]
[Black "EdenHazard8"]
[Result "0-1"]
[WhiteElo "770"]
[BlackElo "1938"]
[TimeControl "300"]
[EndTime "8:30:17 PDT"]
[Termination "EdenHazard8 won by resignation"]

1. e4 {[%clk 0:04:58.1]} 1... e5 {[%clk 0:04:59.2]} 2. Nc3 {[%clk 0:04:57]} 2...
Nc6 {[%clk 0:04:58.6]} 3. Nf3 {[%clk 0:04:55.5]} 3... Bc5 {[%clk 0:04:58.1]} 4.
Bb5 {[%clk 0:04:54.5]} 4... d6 {[%clk 0:04:57.1]} 5. O-O {[%clk 0:04:54.1]} 5...
Nf6 {[%clk 0:04:55.8]} 6. d3 {[%clk 0:04:53.7]} 6... Bg4 {[%clk 0:04:54]} 7. Bg5
{[%clk 0:04:51.5]} 7... h6 {[%clk 0:04:52.8]} 8. Bxf6 {[%clk 0:04:50.5]} 8...
Qxf6 {[%clk 0:04:51.6]} 9. Nd5 {[%clk 0:04:48.9]} 9... Qd8 {[%clk 0:04:50.4]}
10. Qe2 {[%clk 0:04:39.9]} 10... O-O {[%clk 0:04:49.3]} 11. Rad1 {[%clk
0:04:33.1]} 11... Nd4 {[%clk 0:04:48.1]} 12. Bc4 {[%clk 0:04:23.6]} 12... Nxe2+
{[%clk 0:04:46.2]} 0-1

[Event "Live Chess"]
[Site "Chess.com"]
[Date "2023.05.21"]
[Round "-"]
[White "Conradical12"]
[Black "LiamClery2020"]
[Result "0-1"]
[WhiteElo "1515"]
[BlackElo "1996"]
[TimeControl "300"]
[EndTime "8:30:35 PDT"]
[Termination "LiamClery2020 won by resignation"]

1. e4 {[%clk 0:04:56.7]} 1... Nf6 {[%clk 0:04:59.9]} 2. e5 {[%clk 0:04:54.6]}
2... Nd5 {[%clk 0:04:59.1]} 3. d4 {[%clk 0:04:53.8]} 3... d6 {[%clk 0:04:58.1]}
4. Nf3 {[%clk 0:04:53.2]} 4... dxe5 {[%clk 0:04:56.7]} 5. Nxe5 {[%clk
0:04:51.5]} 5... c6 {[%clk 0:04:56.1]} 6. c4 {[%clk 0:04:49.9]} 6... Nb4 {[%clk
0:04:55.6]} 7. a3 {[%clk 0:04:48]} 7... Qxd4 {[%clk 0:04:54.8]} 8. axb4 {[%clk
0:04:40.4]} 8... Qxe5+ {[%clk 0:04:53.5]} 9. Qe2 {[%clk 0:04:38.6]} 9... Qxe2+
{[%clk 0:04:52.6]} 10. Bxe2 {[%clk 0:04:37.7]} 10... g6 {[%clk 0:04:52.5]} 11.
O-O {[%clk 0:04:36.3]} 11... Bg7 {[%clk 0:04:52]} 12. Nc3 {[%clk 0:04:35.4]}
12... O-O {[%clk 0:04:51.3]} 13. Be3 {[%clk 0:04:34.5]} 13... Be6 {[%clk
0:04:50.7]} 14. Rae1 {[%clk 0:04:33.4]} 14... Nd7 {[%clk 0:04:50.2]} 15. Bf3
{[%clk 0:04:32.4]} 15... Ne5 {[%clk 0:04:49.5]} 16. Bg5 {[%clk 0:04:29.1]} 16...
Nxf3+ {[%clk 0:04:45.7]} 17. gxf3 {[%clk 0:04:28.2]} 17... Bxc4 {[%clk
0:04:45.6]} 18. Ne2 {[%clk 0:04:23.7]} 18... Rfe8 {[%clk 0:04:42.6]} 0-1

[Event "Live Chess"]
[Site "Chess.com"]
[Date "2023.05.21"]
[Round "-"]
[White "Man-Del-Brot"]
[Black "WelshTiger"]
[Result "0-1"]
[WhiteElo "1079"]
[BlackElo "2335"]
[TimeControl "300"]
[EndTime "8:30:40 PDT"]
[Termination "WelshTiger won on time"]

1. g4 {[%clk 0:04:49.6]} 1... c6 {[%clk 0:04:54.7]} 2. h4 {[%clk 0:04:46.4]}
2... d5 {[%clk 0:04:51.7]} 3. g5 {[%clk 0:04:45.2]} 3... h6 {[%clk 0:04:50.2]}
4. d3 {[%clk 0:04:43.8]} 4... hxg5 {[%clk 0:04:48.7]} 5. Bxg5 {[%clk 0:04:40.4]}
5... Nf6 {[%clk 0:04:48.1]} 6. Bg2 {[%clk 0:04:37.4]} 6... e5 {[%clk 0:04:47]}
7. e3 {[%clk 0:04:34.7]} 7... Be7 {[%clk 0:04:46.5]} 8. Nd2 {[%clk 0:04:33.1]}
8... Nbd7 {[%clk 0:04:43.6]} 9. Qe2 {[%clk 0:04:30.4]} 9... Nf8 {[%clk
0:04:42.7]} 10. O-O-O {[%clk 0:04:29.1]} 10... Ne6 {[%clk 0:04:42]} 11. Bxf6
{[%clk 0:04:26.3]} 11... Bxf6 {[%clk 0:04:41.9]} 12. e4 {[%clk 0:04:18.1]} 12...
d4 {[%clk 0:04:31.4]} 13. Qf1 {[%clk 0:03:51.5]} 13... b5 {[%clk 0:04:29.4]} 14.
f4 {[%clk 0:03:49.8]} 14... Nxf4 {[%clk 0:04:28]} 15. Nb3 {[%clk 0:03:33.6]}
15... a5 {[%clk 0:04:25]} 16. Bh3 {[%clk 0:03:23.2]} 16... Rxh4 {[%clk
0:04:14.2]} 17. Bg2 {[%clk 0:02:52.7]} 17... Rxh1 {[%clk 0:04:09]} 18. Bxh1
{[%clk 0:02:50.9]} 18... a4 {[%clk 0:04:08]} 19. Nd2 {[%clk 0:02:48.9]} 19... a3
{[%clk 0:04:05.7]} 20. b3 {[%clk 0:02:47.3]} 20... Qe7 {[%clk 0:03:59.3]} 21.
Ndf3 {[%clk 0:02:44.8]} 21... Qc5 {[%clk 0:03:55.9]} 22. Qe1 {[%clk 0:02:35]}
22... Bg4 {[%clk 0:03:46.4]} 23. b4 {[%clk 0:02:21.3]} 23... Qd6 {[%clk
0:03:42.7]} 24. c3 {[%clk 0:01:12.3]} 24... dxc3 {[%clk 0:03:37.5]} 25. Qxc3
{[%clk 0:01:10.1]} 25... Ra4 {[%clk 0:03:36.6]} 26. Qc5 {[%clk 0:01:05.9]} 26...
Qxc5+ {[%clk 0:03:28.2]} 27. bxc5 {[%clk 0:01:04.5]} 27... Ne6 {[%clk 0:03:12]}
28. Kc2 {[%clk 0:00:43.1]} 28... Nxc5 {[%clk 0:03:06.1]} 29. Nd2 {[%clk
0:00:16.4]} 29... Bxd1+ {[%clk 0:03:02.4]} 30. Kxd1 {[%clk 0:00:14]} 30... Nxd3
{[%clk 0:03:01.7]} 31. Kc2 {[%clk 0:00:12]} 31... Nf2 {[%clk 0:02:54.8]} 32. Bf3
{[%clk 0:00:08.6]} 32... Bg5 {[%clk 0:02:44.8]} 0-1